{"text_format":"3","workbook":"xlsx","n_sheets":1,"sheets":["List sa knjigama iz biblioteke"],"not_rendered":{"defined_names":4},"read":"whole","date_system":"1900"}

{"sheet":"List sa knjigama iz biblioteke","index":0,"n_rows":9,"n_cols":8,"rows_kept":9,"merged":[[0,1,0,4],[0,5,0,6]]}
[null,"List sa knjigama uzetim iz biblioteke",{"$nulls":3},"BROJ DANA DO ISTEKA ROKA ZA VRAĆANJE: ",null,10]
["Istekao rok","STUDENT","ADRESA E-POŠTE ZA KONTAKT","TELEFON ZA KONTAKT","NASLOV KNJIGE","DATUM UZIMANJA","DATUM VRAĆANJA","DAN(A)"]
[{"$f":"IFERROR(((Knjige[[#This Row],[DATUM UZIMANJA]]+DozvoljeniBrojDana)<TODAY())*(LEN(Knjige[[#This Row],[DATUM VRAĆANJA]])=0)*(LEN(Knjige[[#This Row],[DATUM UZIMANJA]])>0),0)","v":0},"Milinka Vasiljević","neko@example.com","555-0100","Kućica u preriji",{"$f":"DATE(YEAR(TODAY()),1,14)","v":"2018-01-14"},{"$f":"DATE(YEAR(TODAY()),1,21)","v":"2018-01-21"},{"$f":"IFERROR(IF(Knjige[[#This Row],[DATUM VRAĆANJA]]=\"\",IF(Knjige[[#This Row],[DATUM UZIMANJA]]<>\"\", TODAY()-Knjige[[#This Row],[DATUM UZIMANJA]],\"\"),Knjige[[#This Row],[DATUM VRAĆANJA]]-Knjige[[#This Row],[DATUM UZIMANJA]]), \"\")","v":7}]
[{"$f":"IFERROR(((Knjige[[#This Row],[DATUM UZIMANJA]]+DozvoljeniBrojDana)<TODAY())*(LEN(Knjige[[#This Row],[DATUM VRAĆANJA]])=0)*(LEN(Knjige[[#This Row],[DATUM UZIMANJA]])>0),0)","v":0},"Stevan Daničić","neko@example.com","555-0101","Šarlotina mreža",{"$f":"DATE(YEAR(TODAY()),2,15)","v":"2018-02-15"},{"$f":"DATE(YEAR(TODAY()),2,18)","v":"2018-02-18"},{"$f":"IFERROR(IF(Knjige[[#This Row],[DATUM VRAĆANJA]]=\"\",IF(Knjige[[#This Row],[DATUM UZIMANJA]]<>\"\", TODAY()-Knjige[[#This Row],[DATUM UZIMANJA]],\"\"),Knjige[[#This Row],[DATUM VRAĆANJA]]-Knjige[[#This Row],[DATUM UZIMANJA]]), \"\")","v":3}]
[{"$f":"IFERROR(((Knjige[[#This Row],[DATUM UZIMANJA]]+DozvoljeniBrojDana)<TODAY())*(LEN(Knjige[[#This Row],[DATUM VRAĆANJA]])=0)*(LEN(Knjige[[#This Row],[DATUM UZIMANJA]])>0),0)","v":0},"Radmila Jevtić","neko@example.com","555-0102","Fantomska naplatna rampa",{"$f":"DATE(YEAR(TODAY()),2,17)","v":"2018-02-17"},{"$f":"DATE(YEAR(TODAY()),2,22)","v":"2018-02-22"},{"$f":"IFERROR(IF(Knjige[[#This Row],[DATUM VRAĆANJA]]=\"\",IF(Knjige[[#This Row],[DATUM UZIMANJA]]<>\"\", TODAY()-Knjige[[#This Row],[DATUM UZIMANJA]],\"\"),Knjige[[#This Row],[DATUM VRAĆANJA]]-Knjige[[#This Row],[DATUM UZIMANJA]]), \"\")","v":5}]
[{"$f":"IFERROR(((Knjige[[#This Row],[DATUM UZIMANJA]]+DozvoljeniBrojDana)<TODAY())*(LEN(Knjige[[#This Row],[DATUM VRAĆANJA]])=0)*(LEN(Knjige[[#This Row],[DATUM UZIMANJA]])>0),0)","v":0},"Đorđe Jokanović","neko@example.com","555-0103","Gđa. Frizbi i pacovi iz NIMH-a",{"$f":"DATE(YEAR(TODAY()),2,17)","v":"2018-02-17"},{"$f":"DATE(YEAR(TODAY()),2,25)","v":"2018-02-25"},{"$f":"IFERROR(IF(Knjige[[#This Row],[DATUM VRAĆANJA]]=\"\",IF(Knjige[[#This Row],[DATUM UZIMANJA]]<>\"\", TODAY()-Knjige[[#This Row],[DATUM UZIMANJA]],\"\"),Knjige[[#This Row],[DATUM VRAĆANJA]]-Knjige[[#This Row],[DATUM UZIMANJA]]), \"\")","v":8}]
[{"$f":"IFERROR(((Knjige[[#This Row],[DATUM UZIMANJA]]+DozvoljeniBrojDana)<TODAY())*(LEN(Knjige[[#This Row],[DATUM VRAĆANJA]])=0)*(LEN(Knjige[[#This Row],[DATUM UZIMANJA]])>0),0)","v":0},"Jovanka Obradović","neko@example.com","555-0104","Matilda",{"$f":"DATE(YEAR(TODAY()),2,18)","v":"2018-02-18"},{"$f":"DATE(YEAR(TODAY()),2,28)","v":"2018-02-28"},{"$f":"IFERROR(IF(Knjige[[#This Row],[DATUM VRAĆANJA]]=\"\",IF(Knjige[[#This Row],[DATUM UZIMANJA]]<>\"\", TODAY()-Knjige[[#This Row],[DATUM UZIMANJA]],\"\"),Knjige[[#This Row],[DATUM VRAĆANJA]]-Knjige[[#This Row],[DATUM UZIMANJA]]), \"\")","v":10}]
[{"$f":"IFERROR(((Knjige[[#This Row],[DATUM UZIMANJA]]+DozvoljeniBrojDana)<TODAY())*(LEN(Knjige[[#This Row],[DATUM VRAĆANJA]])=0)*(LEN(Knjige[[#This Row],[DATUM UZIMANJA]])>0),0)","v":1},"Ljubica Stojšić","neko@example.com","555-0105","Letopisi Narnije",{"$f":"DATE(YEAR(TODAY()),1,23)","v":"2018-01-23"},null,{"$f":"IFERROR(IF(Knjige[[#This Row],[DATUM VRAĆANJA]]=\"\",IF(Knjige[[#This Row],[DATUM UZIMANJA]]<>\"\", TODAY()-Knjige[[#This Row],[DATUM UZIMANJA]],\"\"),Knjige[[#This Row],[DATUM VRAĆANJA]]-Knjige[[#This Row],[DATUM UZIMANJA]]), \"\")","v":164}]
[{"$f":"IFERROR(((Knjige[[#This Row],[DATUM UZIMANJA]]+DozvoljeniBrojDana)<TODAY())*(LEN(Knjige[[#This Row],[DATUM VRAĆANJA]])=0)*(LEN(Knjige[[#This Row],[DATUM UZIMANJA]])>0),0)","v":0},"Sofija Milić","neko@example.com","555-0106","Veštica iz Blekberd jezera",{"$f":"TODAY()","v":"2018-07-06"},null,{"$f":"IFERROR(IF(Knjige[[#This Row],[DATUM VRAĆANJA]]=\"\",IF(Knjige[[#This Row],[DATUM UZIMANJA]]<>\"\", TODAY()-Knjige[[#This Row],[DATUM UZIMANJA]],\"\"),Knjige[[#This Row],[DATUM VRAĆANJA]]-Knjige[[#This Row],[DATUM UZIMANJA]]), \"\")","v":0}]